bitfinex-derivatives/quotes_BTCF0:USTF0_20251120
["timestamp","ask_amount","ask_price","bid_price","bid_amount"]
[1763600854237,0.06126,92349.0,92348.0,0.36299803]
[1763600854436,0.06126,92349.0,92348.0,0.46843803]
[1763600855540,0.169655,92341.0,92340.0,2.46e-06]
[1763600855833,0.169655,92341.0,92309.0,0.03889829]
[1763600855834,0.06126,92309.0,92290.0,0.02876159]
[1763600856028,0.01759,92313.0,92290.0,0.00219803]
[1763600856029,0.06126,92291.0,92290.0,0.00219803]
[1763600856234,0.3608,92291.0,92272.0,0.10544]
[1763600856436,0.06126,92274.0,92273.0,0.00219803]
[1763600856633,0.80045,92274.0,92273.0,0.00219803]
[1763600857032,0.80045,92274.0,92250.0,0.3491349]
[1763600857033,0.1084909,92260.0,92250.0,0.3491349]
[1763600857252,0.36093345,92259.0,92252.0,0.1084995]
[1763600857434,0.36093345,92259.0,92253.0,0.00219803]
[1763600857741,0.42206,92254.0,92253.0,0.00219803]
[1763600858141,0.1085043,92248.0,92246.0,0.00016256]
[1763600858347,0.03216803,92247.0,92246.0,0.00016256]
[1763600858539,0.06345803,92247.0,92246.0,0.00089523]
[1763600860134,0.06345803,92247.0,92246.0,0.00016256]
[1763600860439,0.06345803,92247.0,92234.0,0.10552]
[1763600860440,0.06126,92235.0,92234.0,0.10552]
[1763600860635,0.17197753,92235.0,92234.0,0.10625267]
[1763600860943,0.17197753,92235.0,92234.0,0.00073267]
[1763600861144,8.582e-05,92247.0,92246.0,0.1711666]
[1763600861445,0.03872848,92274.0,92246.0,0.1711666]
[1763600861446,0.00016256,92256.0,92255.0,0.06266]
[1763600861652,0.00219803,92256.0,92255.0,0.03285267]
[1763600861832,0.06345803,92256.0,92246.0,0.24377746]
[1763600862142,0.00219803,92256.0,92255.0,0.06266]
[1763600862333,0.00226627,92256.0,92255.0,0.06339267]
[1763600862534,0.00226627,92256.0,92255.0,0.42419267]
[1763600862535,6.824e-05,92256.0,92255.0,0.42419267]
[1763600862744,0.00016256,92265.0,92264.0,0.1711454]
[1763600862945,0.00236059,92265.0,92264.0,0.17187807]
[1763600865246,0.36316059,92265.0,92264.0,0.06339267]
[1763600865749,0.00236059,92265.0,92264.0,0.06339267]
[1763600866740,0.06362059,92265.0,92264.0,0.00073267]
[1763600866936,0.44201059,92265.0,92264.0,0.00073267]
[1763600867142,0.1084854,92264.0,92250.0,0.2140211]
[1763600867339,0.1084854,92264.0,92252.0,0.1084992]
[1763600867536,0.31218,92257.0,92256.0,0.06266]
[1763600867741,0.3608,92297.0,92256.0,0.36153267]
[1763600868042,0.00219803,92296.0,92292.0,0.1084523]
[1763600868346,0.06126,92294.0,92293.0,0.00073267]
[1763600868534,0.06345803,92294.0,92293.0,0.00073267]
[1763600870040,0.06126,92285.0,92284.0,0.00016256]
[1763600870242,0.06345803,92285.0,92284.0,0.00016256]
[1763600871152,0.06345803,92285.0,92284.0,0.00089523]
[1763600871749,0.00219803,92285.0,92284.0,0.06355523]
[1763600874153,0.06345803,92285.0,92284.0,0.00089523]
[1763600874450,0.06345803,92285.0,92284.0,0.00016256]
[1763600874637,0.06126,92264.0,92263.0,0.4692857]
[1763600874837,0.06345803,92264.0,92263.0,0.47001837]
[1763600875041,0.8208,92306.0,92284.0,0.06266]
[1763600875337,0.00219803,92287.0,92286.0,0.42346]
[1763600875536,0.00219803,92287.0,92286.0,0.42419267]
[1763600878056,0.03216803,92287.0,92286.0,0.42419267]
[1763600878254,0.06345803,92287.0,92286.0,0.39207267]
[1763600878961,0.06345803,92287.0,92286.0,0.00073267]
[1763600881053,0.06345803,92287.0,92277.0,0.00016256]
[1763600881054,0.06126,92280.0,92277.0,0.00016256]
[1763600881260,0.06345803,92278.0,92277.0,0.00016256]
[1763600881458,0.06345803,92278.0,92277.0,0.00089523]
[1763600883448,0.37839,92288.0,92287.0,0.1084584]
[1763600883449,0.08229,92288.0,92287.0,0.1084584]
[1763600883652,0.08448803,92288.0,92287.0,0.14619107]
[1763600883848,0.03747803,92288.0,92287.0,0.17732107]
[1763600884053,0.00219803,92288.0,92287.0,0.17732107]
[1763600884957,0.00016256,92296.0,92293.0,0.1084513]
[1763600885161,0.00016256,92296.0,92293.0,0.14764933]
[1763600885465,0.00016256,92296.0,92293.0,0.17877933]
[1763600885655,0.03872848,92325.0,92294.0,0.4]
[1763600885960,0.1083999,92337.0,92324.0,0.47141293]
[1763600886152,0.38219,92339.0,92324.0,0.47141293]
[1763600886552,0.00027078,92326.0,92324.0,0.47141293]
[1763600889061,0.0647,92325.0,92324.0,0.36299803]
[1763600889257,0.0647,92325.0,92324.0,0.00219803]
[1763600890868,0.1731231,92317.0,92316.0,0.00016256]
[1763600892160,0.0647,92308.0,92307.0,0.1084345]
[1763600892365,0.0647,92308.0,92307.0,0.11063253]
[1763600892563,0.0647,92308.0,92307.0,0.00219803]
[1763600892762,0.0647,92299.0,92298.0,0.4692451]
[1763600892965,0.06689803,92299.0,92298.0,0.36153267]
[1763600896270,0.06689803,92299.0,92298.0,0.46997807]
[1763600896657,0.06689803,92299.0,92298.0,0.10917807]
[1763600897865,0.06689803,92299.0,92298.0,0.00073267]
[1763600898373,0.0647,92297.0,92296.0,0.3608]
[1763600898676,0.0647,92290.0,92289.0,0.00016256]
[1763600898865,0.17535283,92290.0,92289.0,0.00016256]
[1763600899872,0.17535283,92290.0,92279.0,0.3608]
[1763600899873,0.1731678,92279.0,92266.0,0.02876159]
[1763600900083,0.0647,92250.0,92249.0,0.02876159]
[1763600900257,0.0647,92250.0,92237.0,0.02876159]
[1763600900258,0.0647,92247.0,92237.0,0.02876159]
[1763600900461,0.03528,92235.0,92230.0,0.6044149]
[1763600900663,0.03528,92235.0,92233.0,0.2139613]
[1763600900868,0.03528,92235.0,92234.0,0.00073267]
[1763600901176,0.03758305,92235.0,92234.0,0.00073267]
[1763600904060,0.03758305,92235.0,92234.0,0.03773267]
[1763600905165,0.00010502,92235.0,92234.0,0.06886267]
[1763600905972,0.00010502,92235.0,92234.0,0.17738337]
[1763600906774,0.00230305,92235.0,92234.0,0.28282337]
[1763600906974,0.03482305,92235.0,92234.0,0.28282337]
[1763600908762,0.08802305,92235.0,92234.0,0.17738337]
[1763600908969,0.08802305,92235.0,92234.0,0.28282337]
[1763600909365,0.08802305,92235.0,92234.0,0.17738337]
[1763600909872,0.11302305,92235.0,92234.0,0.00073267]
[1763600913278,0.11302305,92235.0,92234.0,0.03345267]
[1763600913667,0.02730305,92235.0,92234.0,0.06669267]
[1763600913868,0.02510502,92235.0,92234.0,0.06669267]
[1763600915176,6e-08,92235.0,92234.0,0.46669267]
[1763600915377,0.02081,92268.0,92267.0,0.1084818]
[1763600915680,0.09262803,92268.0,92267.0,0.10921447]
[1763600916467,0.09262803,92268.0,92267.0,0.00073267]
[1763600917782,0.20110873,92268.0,92267.0,0.00073267]
[1763600918485,0.09262803,92268.0,92267.0,0.00073267]
[1763600922291,0.11762803,92268.0,92267.0,0.00073267]
[1763600927379,0.11762803,92268.0,92267.0,0.03417267]
[1763600927580,0.09681803,92268.0,92267.0,0.06741267]
[1763600927783,0.06160803,92268.0,92267.0,0.06741267]
[1763600928179,0.03336261,92268.0,92267.0,0.06741267]
[1763600928384,0.025,92268.0,92267.0,0.06741267]
[1763600928684,0.09681803,92268.0,92267.0,0.10601267]
[1763600929089,0.09681803,92268.0,92267.0,0.17269267]
[1763600929272,0.09681803,92268.0,92267.0,0.00073267]
[1763600929688,0.09681803,92268.0,92267.0,0.00173267]
[1763600930382,0.09681803,92268.0,92267.0,0.06841267]
[1763600931087,0.06160803,92268.0,92267.0,0.06841267]
[1763600931280,0.025,92268.0,92267.0,0.09617426]
[1763600931487,0.025,92268.0,92267.0,0.06741267]
[1763600932992,0.025,92268.0,92267.0,0.06841267]
[1763600933388,0.025,92268.0,92267.0,0.17369267]
[1763600934681,0.025,92268.0,92267.0,0.06841267]
[1763600934881,0.025,92268.0,92267.0,0.17369267]
[1763600936689,0.00674388,92268.0,92267.0,0.17369267]
[1763600937893,0.00674388,92268.0,92267.0,0.17269267]
[1763600938191,0.00674388,92268.0,92267.0,0.17369267]
[1763600939691,0.00674388,92268.0,92267.0,0.23152428]
[1763600939692,8e-08,92268.0,92267.0,0.23152428]
[1763600940496,8e-08,92268.0,92267.0,0.17369267]
[1763600940794,8e-08,92268.0,92267.0,0.23151605]
[1763600941190,8e-08,92268.0,92267.0,0.23051605]
[1763600941395,8e-08,92268.0,92267.0,0.17369267]
[1763600942204,0.00016256,92277.0,92276.0,0.1747312]
[1763600942205,6e-08,92277.0,92276.0,0.1747312]
[1763600942389,0.4271,92298.0,92297.0,0.1747065]
[1763600942583,0.42929803,92298.0,92297.0,0.17543917]
[1763600942783,0.06849803,92298.0,92297.0,0.17543917]
[1763600943196,0.06849803,92298.0,92297.0,0.20435676]
[1763600943492,0.06849803,92298.0,92297.0,0.17543917]
[1763600944303,0.03468803,92298.0,92297.0,0.17543917]
[1763600944499,0.00219803,92298.0,92297.0,0.17543917]
[1763600945000,0.08575,92304.0,92303.0,0.1746995]
[1763600945298,0.00016256,92307.0,92306.0,0.174696]
[1763600945499,0.00016256,92307.0,92306.0,0.17542867]
[1763600945802,0.03265256,92307.0,92306.0,0.17542867]
[1763600945996,0.03485059,92307.0,92306.0,0.17542867]
[1763600947001,0.06866059,92307.0,92306.0,0.17542867]
[1763600947186,0.06866059,92307.0,92306.0,0.20425239]
[1763600947502,0.06366059,92307.0,92306.0,0.17542867]
[1763600948001,0.08575,92313.0,92312.0,0.1746889]
[1763600948200,0.08794803,92313.0,92312.0,0.64138157]
[1763600949703,0.08794803,92313.0,92312.0,0.00073267]
[1763600949903,0.08794803,92313.0,92312.0,0.10585267]
[1763600950104,0.1084383,92304.0,92303.0,0.3608]
[1763600950399,0.19638633,92304.0,92303.0,0.46665267]
[1763600950787,0.08794803,92304.0,92303.0,0.46665267]
[1763600950996,0.08794803,92304.0,92303.0,0.53291267]
[1763600951494,0.00219803,92304.0,92303.0,0.53291267]
[1763600951802,0.03468803,92304.0,92303.0,0.53291267]
[1763600952693,0.00219803,92304.0,92303.0,0.53291267]
[1763600952998,0.06849803,92304.0,92303.0,0.53291267]
[1763600953201,0.08794803,92304.0,92303.0,0.49889267]
[1763600953402,0.11294803,92304.0,92303.0,0.49889267]
[1763600953593,0.11294803,92304.0,92303.0,0.39377267]
[1763600954095,0.11294803,92304.0,92303.0,0.46661267]
[1763600955299,0.11294803,92304.0,92303.0,0.36153267]
[1763600955496,0.11294803,92304.0,92303.0,0.46661267]
[1763600956302,0.11294803,92304.0,92303.0,0.53287267]
[1763600956503,0.09349803,92304.0,92303.0,0.53287267]
[1763600958104,0.11294803,92304.0,92303.0,0.53287267]
[1763600959311,0.09349803,92304.0,92303.0,0.53287267]
[1763600962409,0.02719803,92304.0,92303.0,0.53287267]
[1763600964402,0.025,92304.0,92303.0,0.53287267]
[1763600965011,0.02719803,92304.0,92303.0,0.53287267]
[1763600967105,0.05968803,92304.0,92303.0,0.53287267]
[1763600967316,0.08722803,92304.0,92303.0,0.53287267]
[1763600968210,0.08722803,92304.0,92303.0,0.46629462]
[1763600968409,0.10503803,92304.0,92303.0,0.42779267]
[1763600968611,0.10503803,92304.0,92303.0,0.53279267]
[1763600969217,0.08722803,92304.0,92303.0,0.53279267]
[1763600969714,0.10503803,92304.0,92303.0,0.49877267]
[1763600970214,0.10503803,92304.0,92303.0,0.52840267]
[1763600970709,0.10503803,92304.0,92303.0,0.39377267]
[1763600970915,0.10503803,92304.0,92301.0,0.02890309]
[1763600970916,0.05668,92302.0,92301.0,0.02890309]
[1763600971116,0.1651265,92297.0,92296.0,0.02890309]
[1763600971416,0.07449,92296.0,92295.0,0.1383082]
[1763600971619,0.07668803,92296.0,92295.0,0.13904087]
[1763600971919,0.07668803,92296.0,92295.0,0.16867157]
[1763600975311,0.10168803,92296.0,92295.0,0.16867157]
[1763600976716,0.10168803,92296.0,92295.0,0.00073267]
[1763600977120,0.166656,92289.0,92285.0,0.02895978]
[1763600977334,0.0582,92275.0,92274.0,0.38975978]
[1763600977516,0.0582,92275.0,92274.0,0.3608]
[1763600977517,0.06039803,92275.0,92274.0,0.3608]
[1763600977914,0.00219803,92275.0,92274.0,0.41981267]
[1763600978118,0.02896,92287.0,92286.0,0.05828]
[1763600978428,0.03115803,92287.0,92286.0,0.41981267]
[1763600978721,0.06039803,92287.0,92286.0,0.41981267]
[1763600979121,0.05412256,92296.0,92295.0,0.1667289]
[1763600979325,0.05632059,92296.0,92295.0,0.52826157]
[1763600979526,0.10220059,92296.0,92295.0,0.52826157]
[1763600979717,0.10220059,92296.0,92295.0,0.49862157]
[1763600980119,0.10220059,92296.0,92295.0,0.52826157]
[1763600980929,0.21064839,92296.0,92295.0,0.36153267]
[1763600981229,0.10220059,92296.0,92295.0,0.36153267]
[1763600982327,0.10220059,92296.0,92295.0,0.39017267]
[1763600983125,0.10220059,92296.0,92295.0,0.41908814]
[1763600983625,0.10220059,92296.0,92295.0,0.39044814]
[1763600983824,0.10220059,92296.0,92293.0,0.02891547]
[1763600984022,0.0582,92289.0,92288.0,0.02891547]
[1763600984219,0.06039803,92289.0,92288.0,0.05901267]
[1763600985128,0.0582,92287.0,92286.0,0.38971547]
[1763600985426,0.06039803,92287.0,92286.0,0.3608]
[1763600985830,0.0582,92285.0,92284.0,0.02891547]
[1763600986029,0.0582,92282.0,92281.0,0.02891547]
[1763600986228,0.0582,92282.0,92280.0,0.02891547]
[1763600986229,0.0582,92281.0,92280.0,0.02891547]
[1763600986421,0.06039803,92281.0,92280.0,0.02891547]
[1763600986724,0.06039803,92281.0,92280.0,0.19639464]
[1763600986925,0.06039803,92281.0,92280.0,0.16747917]
[1763600989727,0.00219803,92281.0,92280.0,0.16747917]
[1763600990919,0.20845116,92296.0,92295.0,0.1667289]
[1763600991129,0.21064919,92296.0,92295.0,0.05901267]
[1763600991635,0.10220059,92296.0,92295.0,0.05901267]
[1763600992128,0.10220059,92296.0,92295.0,0.02937267]
[1763600995331,0.10220059,92296.0,92295.0,0.05901267]
[1763600998335,0.10220059,92296.0,92295.0,0.08791759]
[1763600999031,0.10220059,92296.0,92295.0,0.44871759]
[1763601000335,0.10220059,92296.0,92295.0,0.41981267]
[1763601000531,0.10220059,92296.0,92295.0,0.43434267]
[1763601000532,0.02736059,92296.0,92295.0,0.43434267]
[1763601000743,0.02516256,92296.0,92295.0,0.49217786]
[1763601000934,0.02516256,92296.0,92295.0,0.43717909]
[1763601002741,0.025,92312.0,92311.0,0.1604099]
[1763601002942,0.025,92312.0,92311.0,0.65577441]
[1763601003241,0.025,92312.0,92311.0,0.62686257]
[1763601003638,0.07827,92312.0,92311.0,0.62686257]
[1763601003838,0.02719803,92312.0,92311.0,0.62686257]
[1763601004034,0.09578803,92312.0,92311.0,0.41351267]
[1763601004233,0.09578803,92312.0,92311.0,0.62686257]
[1763601006141,0.09578803,92312.0,92311.0,0.65575099]
[1763601007048,0.09578803,92312.0,92311.0,0.55083099]
[1763601007249,0.09578803,92312.0,92311.0,0.36153267]
[1763601007643,0.1084357,92306.0,92305.0,0.02888842]
[1763601007843,0.06859,92304.0,92303.0,0.3608]
[1763601008045,0.07078803,92304.0,92303.0,0.3608]
[1763601008438,0.05546803,92304.0,92303.0,0.41351267]
[1763601008946,0.07078803,92304.0,92303.0,0.41351267]
[1763601009147,0.05546803,92304.0,92303.0,0.41351267]
[1763601009338,0.05546803,92304.0,92303.0,0.51843267]
[1763601009545,0.025,92312.0,92311.0,0.05198]
[1763601009851,0.025,92312.0,92311.0,0.62682257]
[1763601011953,0.025,92312.0,92311.0,0.65571099]
[1763601012148,0.025,92312.0,92311.0,0.62682257]
[1763601012744,0.025,92312.0,92311.0,0.62686257]
[1763601013949,0.025,92312.0,92311.0,0.63660689]
[1763601015556,0.1084022,92335.0,92325.0,0.1586334]
[1763601015749,0.05227881,92326.0,92325.0,0.62504607]
[1763601015948,0.08073881,92326.0,92325.0,0.62504607]
[1763601021958,0.08073881,92326.0,92325.0,0.51663267]
[1763601022158,0.08073881,92326.0,92325.0,0.41175267]
[1763601022368,0.08073881,92326.0,92325.0,0.51663267]
[1763601022764,0.08073881,92326.0,92325.0,0.00073267]
[1763601025058,0.1616905,92321.0,92320.0,0.02474]
[1763601025263,0.1616905,92321.0,92311.0,0.37054432]
[1763601025264,0.1616975,92313.0,92312.0,0.00073267]
[1763601025565,0.16389553,92313.0,92312.0,0.00073267]
[1763601025761,0.00219803,92313.0,92312.0,0.02547267]
[1763601025946,0.00219803,92313.0,92312.0,0.05095267]
[1763601025947,0.05546803,92313.0,92312.0,0.05095267]
[1763601026849,0.05546803,92313.0,92312.0,0.00073267]
[1763601028663,0.05546803,92313.0,92312.0,0.04207267]
[1763601029052,0.05546803,92313.0,92312.0,0.00073267]
[1763601030854,0.05546803,92313.0,92312.0,0.02140267]
[1763601031566,0.05546803,92313.0,92312.0,0.00073267]
[1763601032469,0.05546803,92313.0,92312.0,0.04008]
[1763601032660,0.05546803,92313.0,92312.0,0.04081267]
[1763601034362,0.16389553,92313.0,92312.0,0.04081267]
[1763601034552,0.05546803,92313.0,92312.0,0.04081267]
[1763601035764,0.02610803,92313.0,92312.0,0.04081267]
[1763601035963,0.00219803,92313.0,92312.0,0.04081267]
[1763601036168,0.02610803,92313.0,92312.0,0.04081267]
[1763601036869,0.05087803,92313.0,92312.0,0.04081267]
[1763601037374,0.05087803,92313.0,92312.0,0.07936196]
[1763601037758,0.064,92323.0,92322.0,0.147237]
[1763601037953,0.064,92323.0,92322.0,0.50876967]
[1763601037954,0.06619803,92323.0,92322.0,0.50876967]
[1763601038164,0.06619803,92323.0,92322.0,0.53771293]
[1763601038371,0.06619803,92323.0,92322.0,0.50876967]
[1763601038569,0.06619803,92323.0,92322.0,0.54736068]
[1763601039072,0.06619803,92323.0,92322.0,0.50876967]
[1763601041874,0.06619803,92323.0,92322.0,0.46641267]
[1763601042271,0.06619803,92323.0,92322.0,0.50500627]
[1763601042471,0.06619803,92323.0,92322.0,0.40012627]
[1763601042971,0.06619803,92323.0,92322.0,0.40035267]
[1763601043360,0.06619803,92323.0,92316.0,0.0289497]
[1763601043361,0.1084228,92317.0,92316.0,0.0289497]
[1763601043673,0.1571087,92312.0,92311.0,0.03869402]
[1763601043873,0.15930673,92312.0,92311.0,0.03869402]
[1763601044069,0.15930673,92312.0,92311.0,0.00974432]
[1763601044270,0.15930673,92312.0,92311.0,0.01047699]
[1763601048173,0.15930673,92312.0,92311.0,0.00974432]
[1763601048475,0.1571158,92306.0,92305.0,0.00999234]
[1763601048672,0.15931383,92306.0,92305.0,0.00999234]
[1763601049371,0.1571193,92303.0,92302.0,0.00016256]
[1763601049568,0.15931733,92303.0,92302.0,0.00016256]
[1763601050068,0.04868,92302.0,92295.0,0.37373027]
[1763601050273,0.05087803,92302.0,92295.0,0.37373027]
[1763601050474,0.05087803,92302.0,92295.0,0.48217787]
[1763601050682,0.05087803,92302.0,92297.0,0.1084458]
[1763601051570,0.05087803,92302.0,92295.0,0.37373027]
[1763601051879,0.06504803,92302.0,92295.0,0.37373027]
[1763601053674,0.06504803,92302.0,92300.0,0.1084418]
[1763601053881,0.06504803,92302.0,92301.0,0.01057712]
[1763601054686,0.00219803,92302.0,92301.0,0.05974712]
[1763601056279,0.02610803,92302.0,92301.0,0.05974712]
[1763601056888,0.06504803,92302.0,92301.0,0.05974712]
[1763601057185,0.06504803,92302.0,92301.0,0.16462712]
[1763601058174,0.06504803,92302.0,92301.0,0.01057712]
[1763601058480,0.06504803,92302.0,92301.0,0.00984445]
[1763601058679,0.06504803,92302.0,92301.0,0.01057712]
[1763601058874,0.06504803,92302.0,92301.0,0.03510712]
[1763601059081,0.06504803,92302.0,92301.0,0.05974712]
[1763601059895,0.05087803,92302.0,92301.0,0.05974712]
[1763601063181,0.00016256,92311.0,92310.0,0.04727]
[1763601063182,0.04648256,92311.0,92310.0,0.04727]
[1763601063384,0.04868059,92311.0,92310.0,0.04800267]
[1763601063584,0.04868059,92311.0,92310.0,0.15643377]
[1763601063791,0.00236059,92311.0,92310.0,0.15643377]
[1763601065194,0.00016256,92311.0,92310.0,0.15643377]
[1763601065785,0.07159078,92326.0,92325.0,0.1556834]
[1763601065984,0.07378881,92326.0,92325.0,0.15641607]
[1763601067393,0.07378881,92326.0,92325.0,0.04800267]
[1763601068291,0.07378881,92326.0,92325.0,0.02402267]
[1763601068480,0.07378881,92326.0,92325.0,0.00073267]
[1763601068891,0.07378881,92326.0,92325.0,0.02402267]
[1763601069693,0.07378881,92326.0,92325.0,0.00073267]
[1763601069991,0.07378881,92326.0,92325.0,0.02402267]
[1763601070198,0.07378881,92326.0,92325.0,0.00073267]
[1763601070587,0.1547428,92317.0,92316.0,0.15527647]
[1763601070787,0.15694083,92317.0,92316.0,0.00089523]
[1763601071688,0.15694083,92317.0,92316.0,0.00016256]
[1763601075797,0.1687181,92304.0,92303.0,0.3608]
[1763601075992,0.17091613,92304.0,92303.0,0.40880267]
[1763601082385,0.04632,92302.0,92301.0,0.00984445]
[1763601082591,0.04851803,92302.0,92301.0,0.00984445]
[1763601083304,0.40931803,92302.0,92301.0,0.00984445]
[1763601083801,0.40931803,92302.0,92301.0,0.03313445]
[1763601085502,0.40931803,92302.0,92301.0,0.00984445]
[1763601088206,0.40931803,92302.0,92301.0,0.03313445]
[1763601089099,0.40931803,92302.0,92301.0,0.00984445]
[1763601091399,0.04851803,92302.0,92301.0,0.05414712]
[1763601092904,0.06195803,92302.0,92301.0,0.03200712]
[1763601093112,0.17039843,92302.0,92301.0,0.01057712]
[1763601093302,0.06195803,92302.0,92301.0,0.16353872]
[1763601093500,0.04851803,92302.0,92301.0,0.16353872]
[1763601096615,0.07351803,92302.0,92301.0,0.16353872]
[1763601098220,0.02719803,92302.0,92301.0,0.16353872]
[1763601098402,0.025,92302.0,92301.0,0.26837872]
[1763601099499,0.02439,92302.0,92301.0,0.26837872]
[1763601100701,0.02439,92302.0,92301.0,0.16353872]
[1763601100906,0.02439,92302.0,92301.0,0.26837872]
[1763601100907,0.08613803,92302.0,92301.0,0.26837872]
[1763601101106,0.07269803,92302.0,92301.0,0.26837872]
[1763601101310,0.02439,92302.0,92301.0,0.26837872]
[1763601102418,0.00016256,92313.0,92312.0,0.1529487]
[1763601102614,0.00016256,92313.0,92312.0,0.51448137]
[1763601107916,0.00016256,92313.0,92312.0,0.57232688]
[1763601108216,0.07138078,92326.0,92325.0,0.1529334]
[1763601108516,0.07138078,92326.0,92325.0,0.51446607]
[1763601108705,0.18199111,92326.0,92325.0,0.40605267]
[1763601109106,0.07357881,92326.0,92325.0,0.40605267]
[1763601110620,0.04846078,92326.0,92325.0,0.40605267]
[1763601113316,0.02527078,92326.0,92325.0,0.40605267]
[1763601115017,0.1083817,92353.0,92325.0,0.40605267]
[1763601115018,0.03872848,92357.0,92356.0,0.152897]
[1763601115215,0.02257024,92369.0,92365.0,0.04452]
[1763601115415,0.13653493,92402.0,92365.0,0.04452]
[1763601115416,0.3608,92387.0,92365.0,0.40605267]
[1763601115622,0.04638066,92366.0,92365.0,0.51089267]
[1763601115814,0.00027066,92366.0,92365.0,0.51089267]
[1763601116321,0.05955,92388.0,92387.0,0.04452]
[1763601116511,0.06174803,92388.0,92387.0,0.00073267]
[1763601117419,0.06174803,92388.0,92387.0,0.02333267]
[1763601117815,0.06174803,92388.0,92387.0,0.00073267]
[1763601118212,0.06174803,92388.0,92387.0,0.02333267]
[1763601118417,0.06174803,92388.0,92387.0,0.04525267]
[1763601118617,0.06174803,92388.0,92387.0,0.00073267]
[1763601120211,0.1544577,92381.0,92380.0,0.3608]
[1763601120418,0.1544577,92381.0,92378.0,0.00016236]
[1763601120419,0.04611,92379.0,92378.0,0.00016236]
[1763601120622,0.04830803,92379.0,92378.0,0.00089503]
[1763601121525,0.04830803,92379.0,92378.0,0.02349503]
[1763601122120,0.04830803,92379.0,92378.0,0.04541503]
[1763601123318,0.04830803,92379.0,92378.0,0.00089503]
[1763601123919,0.04830803,92379.0,92378.0,0.02368503]
[1763601124118,0.04830803,92379.0,92378.0,0.04505503]
[1763601127718,0.06193803,92379.0,92378.0,0.04505503]
[1763601129329,0.02538803,92379.0,92378.0,0.04505503]
[1763601129526,0.04701803,92379.0,92378.0,0.04505503]
[1763601130823,0.06064803,92379.0,92378.0,0.04505503]
[1763601132226,0.3608,92393.0,92392.0,0.1083348]
[1763601132420,0.04494,92397.0,92396.0,0.04416]
[1763601132620,0.04713803,92397.0,92396.0,0.04489267]
[1763601133226,0.04713803,92397.0,92396.0,0.00073267]
[1763601133430,0.04713803,92397.0,92396.0,0.04489267]
[1763601134537,0.04713803,92397.0,92396.0,0.02352267]
[1763601136327,0.04713803,92397.0,92396.0,0.00073267]
[1763601136523,0.04454,92392.0,92391.0,0.1311252]
[1763601136832,0.04673803,92392.0,92391.0,0.02352267]
[1763601137131,0.04454,92390.0,92389.0,0.10476]
[1763601137328,0.04673803,92390.0,92389.0,0.10549267]
[1763601137634,0.04454,92383.0,92382.0,0.19934504]
[1763601137939,0.04673803,92383.0,92382.0,0.02352267]
[1763601138137,0.15508343,92383.0,92382.0,0.02352267]
[1763601138330,0.15508343,92383.0,92382.0,0.04489267]
[1763601138733,0.15508343,92383.0,92375.0,0.46556]
[1763601138734,0.1665201,92379.0,92378.0,0.04432236]
[1763601138940,0.06036803,92379.0,92378.0,0.04505503]
[1763601141634,0.06036803,92379.0,92378.0,0.00089503]
[1763601141940,0.06036803,92379.0,92378.0,0.04505503]
[1763601143336,0.06036803,92379.0,92378.0,0.15340623]
[1763601144633,0.06036803,92379.0,92378.0,0.04505503]
[1763601145642,0.06036803,92379.0,92378.0,0.00089503]
[1763601147140,0.06036803,92379.0,92368.0,0.02888674]
[1763601147141,0.04381,92369.0,92368.0,0.02888674]
[1763601147345,0.1083712,92361.0,92360.0,0.02888674]
[1763601147642,0.04381,92340.0,92339.0,0.3608]
[1763601147836,0.04600803,92340.0,92339.0,0.3608]
[1763601148036,0.15440383,92340.0,92339.0,0.3608]
[1763601148435,0.04381,92334.0,92333.0,0.152994]
[1763601148644,0.04600803,92334.0,92333.0,0.15372667]
[1763601148836,0.15441093,92334.0,92333.0,0.04532267]
[1763601149043,0.15441093,92334.0,92333.0,0.00073267]
[1763601149347,0.04600803,92334.0,92333.0,0.00073267]
[1763601149643,0.04600803,92334.0,92333.0,0.10913667]
[1763601150548,0.00219803,92334.0,92333.0,0.15372667]
[1763601150744,0.01276,92344.0,92333.0,0.15372667]
[1763601150745,0.04381,92344.0,92343.0,0.1529823]
[1763601151044,0.05876803,92344.0,92343.0,0.04532267]
[1763601151241,0.37356,92351.0,92343.0,0.04532267]
[1763601151242,0.3608,92351.0,92347.0,0.04459]
[1763601151446,0.01276,92384.0,92343.0,0.40073267]
[1763601151447,0.01450937,92379.0,92378.0,0.1516512]
[1763601151645,0.04381,92395.0,92394.0,0.1516325]
[1763601151836,0.04600803,92395.0,92394.0,0.04403267]
[1763601152540,0.04600803,92395.0,92394.0,0.40483267]
[1763601153345,0.04600803,92395.0,92394.0,0.04403267]
[1763601157341,0.00219803,92395.0,92394.0,0.04403267]
[1763601159642,0.02484803,92395.0,92394.0,0.04403267]
[1763601160653,0.04742803,92395.0,92394.0,0.04403267]
[1763601163456,0.04523,92388.0,92387.0,0.3608]
[1763601163661,0.04742803,92388.0,92387.0,0.3608]
[1763601164354,0.04523,92386.0,92385.0,0.02181236]
[1763601164547,0.04742803,92386.0,92385.0,0.04346236]
[1763601164858,0.04742803,92386.0,92385.0,0.04419503]
[1763601168359,0.04742803,92386.0,92385.0,0.00089503]
[1763601168854,0.04742803,92386.0,92385.0,0.00016236]
[1763601174067,0.06093803,92386.0,92385.0,0.00016236]
[1763601175756,0.1535824,92377.0,92376.0,0.19353368]
[1763601175963,0.04742803,92377.0,92376.0,0.10908627]
[1763601177565,0.04742803,92377.0,92376.0,0.04403267]
[1763601188159,0.04742803,92377.0,92376.0,0.00073267]
[1763601188671,0.04742803,92377.0,92376.0,0.02238267]
[1763601188868,0.04742803,92377.0,92376.0,0.04376267]
[1763601189265,0.05812,92370.0,92369.0,0.18990715]
[1763601189473,0.06031803,92370.0,92369.0,0.19063982]
[1763601190267,0.06031803,92370.0,92369.0,0.15212417]
[1763601193975,0.06031803,92370.0,92369.0,0.04376267]
[1763601203477,0.16867863,92370.0,92369.0,0.04376267]
[1763601203869,0.06031803,92370.0,92369.0,0.04376267]
[1763601206689,0.06031803,92370.0,92369.0,0.15212447]
[1763601208177,0.02283,92376.0,92375.0,0.1516547]
[1763601208376,0.02283,92379.0,92378.0,0.0433]
[1763601208687,0.04721803,92379.0,92378.0,0.04403267]
[1763601209184,0.04721803,92379.0,92378.0,0.40483267]
[1763601209483,0.04502,92379.0,92378.0,0.40483267]
[1763601210278,0.05799,92385.0,92384.0,0.0433]
[1763601210486,0.06018803,92385.0,92384.0,0.04403267]
[1763601211187,0.06018803,92385.0,92384.0,0.15237687]
[1763601212580,0.06018803,92385.0,92384.0,0.04403267]
[1763601215580,0.04485,92379.0,92378.0,0.39936026]
[1763601215887,0.04704803,92379.0,92378.0,0.3608]
[1763601216088,0.03624803,92379.0,92378.0,0.36153267]
[1763601216288,0.03624803,92379.0,92378.0,0.39043759]
[1763601217889,0.03624803,92379.0,92378.0,0.41186759]
[1763601218989,0.00016236,92386.0,92385.0,0.04372]
[1763601219287,0.04525,92397.0,92396.0,0.04372]